fUST/lending_fUST_20250909
["ID","MTS","AMOUNT","RATE_DAILY","PERIOD"]
[384410889,1757391032881,-300.0,0.00013589,2]
[384410891,1757391032890,-0.73006144,0.00013589,2]
[384411259,1757391038571,-299.26993856,0.00013589,2]
[384411260,1757391038581,-300.0,0.00013589,2]
[384411261,1757391038591,-300.0,0.00013589,2]
[384411262,1757391038600,-300.0,0.00013589,2]
[384411263,1757391038610,-2105.41764886,0.0001359,2]
[384411264,1757391038619,-1200.0,0.00013594,2]
[384411265,1757391038629,-2968.73679622,0.00013595,2]
[384411266,1757391038642,-831.09228641,0.00013595,2]
[384411267,1757391038654,-4273.08184796,0.00013595,2]
[384411268,1757391038665,-4184.43960058,0.00013595,2]
[384411269,1757391038676,-433.89074549,0.00013595,2]
[384411270,1757391038697,-3576.34701165,0.00013595,2]
[384411271,1757391038733,-3071.12129889,0.00013595,2]
[384411275,1757391043792,-168.0,0.00013453,2]
[384411276,1757391043801,-264.08454378,0.00013595,2]
[384411277,1757391043813,-3825.31050581,0.00013595,2]
[384411289,1757391046900,-4702.86813089,0.00013595,2]
[384411292,1757391132388,199.0,0.00027397,120]
[384411309,1757391251990,-168.0,0.00013191,2]
[384411311,1757391273692,168.0,0.00013097,2]
[384411312,1757391297562,168.0,0.00013097,2]
[384411313,1757391320357,168.0,0.00013097,2]
[384411314,1757391342914,168.0,0.00013097,2]
[384411316,1757391365882,168.0,0.00013097,2]
[384411317,1757391390309,168.0,0.00013097,2]
[384411318,1757391413127,168.0,0.00013097,2]
[384411319,1757391435538,168.0,0.00013097,2]
[384411320,1757391460670,168.0,0.00013097,2]
[384411323,1757391652568,168.0,0.00013097,2]
[384411325,1757391840209,168.0,0.00013097,2]
[384411326,1757391863594,168.0,0.00013097,2]
[384411328,1757391879642,168.0,0.00013097,2]
[384411329,1757391882895,-168.0,0.00013362,2]
[384411330,1757391887491,447.7335979,0.0001346,2]
[384411334,1757392147578,158.84,0.00012329,2]
[384411335,1757392157851,794.24,0.00012329,2]
[384411339,1757392168246,361.02,0.00012329,2]
[384411340,1757392178696,551.56,0.00012329,2]
[384411341,1757392199293,208.92,0.00012329,2]
[384411343,1757392219936,174.1,0.00012329,2]
[384411344,1757392230324,870.53,0.00012329,2]
[384411369,1757392231926,-733.23654948,0.00013192,2]
[384411372,1757392231936,-733.23654948,0.00013325,2]
[384411374,1757392231945,-2059.3280605,0.00013573,2]
[384411377,1757392231954,-1200.0,0.00013595,2]
[384411380,1757392231963,-1200.0,0.00013596,2]
[384411383,1757392231974,-300.0,0.00013596,2]
[384411384,1757392231984,-300.0,0.00013596,2]
[384411386,1757392231994,-35680.15201801,0.00013597,2]
[384411387,1757392232004,-1452.66485161,0.00013598,2]
[384411388,1757392232013,-7943.37732146,0.00013598,2]
[384411390,1757392237784,-7126.46825232,0.00013598,2]
[384411391,1757392237795,-1908.91174608,0.00013658,2]
[384411392,1757392237807,-196.50590278,0.00013658,2]
[384411393,1757392237817,-875.51806731,0.00013667,2]
[384411394,1757392237828,-577.14678429,0.00013667,2]
[384411395,1757392237838,-106.74163848,0.00013673,2]
[384411396,1757392237851,-393.25836152,0.00013673,2]
[384411397,1757392237861,-500.0,0.00013673,2]
[384411398,1757392237870,-164.97755852,0.00013673,2]
[384411399,1757392237882,-336.17019369,0.00013673,2]
[384411400,1757392237891,-500.68370816,0.00013673,2]
[384411401,1757392237901,-160.0,0.00013674,2]
[384411402,1757392237910,-240.09759504,0.00013674,2]
[384411422,1757392240088,-5851.36232416,0.00013462,2]
[384411423,1757392240098,-10075.8598321,0.00013674,2]
[384411438,1757392508428,733.23654948,0.00013171,2]
[384411440,1757392631377,20247.2260646,0.00012624,2]
[384411442,1757392714692,-375.31699141,0.00013188,2]
[384411443,1757392717647,-184.66432043,0.00013188,2]
[384411444,1757392721829,173.25523764,0.00013056,2]
[384411445,1757392723193,-173.25523764,0.00013188,2]
[384411446,1757392738306,733.23654948,0.00013056,2]
[384411447,1757392747101,439.23173388,0.00013056,2]
[384411449,1757392763113,518.82143178,0.00013056,2]
[384411452,1757392874362,733.23654948,0.00013056,2]
[384411453,1757392875704,-177.01210144,0.00013188,2]
[384411454,1757392899964,556.22444804,0.00013056,2]
[384411470,1757392916475,556.22444804,0.00013056,2]
[384411471,1757392926285,378.66,0.00012329,2]
[384411472,1757392936766,465.29,0.00012329,2]
[384411474,1757392957605,173.93,0.00012329,2]
[384411475,1757392978622,173.93,0.00012329,2]
[384411476,1757392989261,251.19,0.00012329,2]
[384411477,1757392999887,361.81,0.00012329,2]
[384411478,1757393010310,301.51,0.00012329,2]
[384411479,1757393020702,321.93,0.00012329,2]
[384411480,1757393031129,394.83,0.00012329,2]
[384411481,1757393041542,704.81,0.00012329,2]
[384411482,1757393062198,774.8,0.00012329,2]
[384411483,1757393066890,1000.0,0.00012626,2]
[384411484,1757393072646,315.7,0.00012329,2]
[384411486,1757393093290,337.73,0.00012329,2]
[384411502,1757393103939,544.25,0.00012329,2]
[384411503,1757393120507,747.43394509,0.00013171,2]
[384411504,1757393124513,360.4,0.00012329,2]
[384411505,1757393134913,550.61,0.00012329,2]
[384411506,1757393138080,747.43394509,0.00013171,2]
[384411507,1757393155552,208.56,0.00012329,2]
[384411508,1757393166229,347.6,0.00012329,2]
[384411509,1757393186837,695.24,0.00012329,2]
[384411511,1757393287460,1063.0,0.00025,30]
[384411513,1757393342686,747.43394509,0.00013169,2]
[384411514,1757393359427,747.43394509,0.00013169,2]
[384411515,1757393383979,177.01210144,0.00013071,2]
[384411517,1757393407667,177.01210144,0.00013071,2]
[384411518,1757393430125,177.01210144,0.00013071,2]
[384411915,1757393438159,-177.01210144,0.00013203,2]
[384411916,1757393438169,-177.01210144,0.00013336,2]
[384411917,1757393438178,-544.20808132,0.00013572,2]
[384411918,1757393438264,-203.22586377,0.00013572,2]
[384411919,1757393438274,-300.0,0.00013591,2]
[384411920,1757393438283,-300.0,0.00013591,2]
[384411921,1757393438293,-1200.0,0.00013591,2]
[384411922,1757393438302,-1144.37413623,0.00013592,2]
[384411923,1757393438314,-2108.39254201,0.00013592,2]
[384411930,1757393440231,-2420.60077858,0.00013592,2]
[384411931,1757393440243,-1314.32071438,0.00013592,2]
[384411932,1757393440252,-10681.44508,0.00013598,2]
[384411933,1757393440262,-936.04896312,0.00013598,2]
[384411934,1757393440272,-344.52018119,0.00013664,2]
[384411935,1757393440282,-19778.46865412,0.00013667,2]
[384411940,1757393443126,-936.04896312,0.00013667,2]
[384411941,1757393443138,-30221.53134588,0.00013667,2]
[384411942,1757393443147,-500.0,0.0001367,2]
[384411943,1757393443157,-501.69654339,0.0001367,2]
[384411944,1757393443167,-70.81388655,0.0001367,2]
[384411945,1757393443179,-253.91329771,0.0001367,2]
[384411946,1757393443190,-179.05470276,0.0001367,2]
[384411947,1757393443200,-500.0,0.0001367,2]
[384411948,1757393443211,-404.29104924,0.0001367,2]
[384411949,1757393443235,-96.52977355,0.0001367,2]
[384411950,1757393443246,-500.0,0.0001367,2]
[384411951,1757393443256,-51.15022645,0.0001367,2]
[384411961,1757393446286,-448.84977355,0.0001367,2]
[384411962,1757393446296,-313.057375,0.0001367,2]
[384411963,1757393446306,-500.0,0.0001367,2]
[384411964,1757393446315,-208.23216016,0.0001367,2]
[384411965,1757393446324,-500.0,0.0001367,2]
[384411966,1757393446334,-500.0,0.0001367,2]
[384411967,1757393446343,-500.0,0.0001367,2]
[384411968,1757393446353,-540.56927626,0.0001367,2]
[384411969,1757393446363,-500.0,0.0001367,2]
[384411970,1757393446372,-500.0,0.0001367,2]
[384411971,1757393446381,-500.0,0.0001367,2]
[384411972,1757393446391,-500.0,0.0001367,2]
[384411973,1757393446401,-500.0,0.0001367,2]
[384411974,1757393446410,-500.0,0.0001367,2]
[384411975,1757393446419,-417.15472785,0.00013672,2]
[384411976,1757393446429,-160.0,0.00013672,2]
[384411977,1757393446438,-233.05759179,0.00013672,2]
[384411978,1757393446447,-203.28455737,0.00013672,2]
[384411979,1757393446456,-217.65034598,0.00013672,2]
[384411980,1757393446465,-564.64354869,0.00013672,2]
[384411981,1757393446481,-282.15803344,0.00013672,2]
[384411982,1757393446490,-424.96385456,0.00013673,2]
[384411983,1757393616553,488.29,0.00012329,2]
[384411984,1757393626963,463.67,0.00012329,2]
[384411985,1757393637376,412.19,0.00012329,2]
[384411987,1757393647810,446.7,0.00012329,2]
[384411988,1757393658433,372.25,0.00012329,2]
[384411989,1757393668930,310.2,0.00012329,2]
[384411990,1757393670728,4439.71294885,0.00013131,2]
[384411991,1757393679333,258.5,0.00012329,2]
[384411992,1757393689998,215.42,0.00012329,2]
[384411993,1757393691978,-4439.71294885,0.00013264,2]
[384411994,1757393700648,179.52,0.00012329,2]
[384411995,1757393701031,1324.80517948,0.00013434,2]
[384411996,1757393711076,897.61,0.00012329,2]
[384411997,1757393721725,175.21,0.00012329,2]
[384411998,1757393742385,876.08,0.00012329,2]
[384411999,1757393772596,19190.711637,0.0001257,2]
[384412000,1757393860942,1371.962762,0.00012559,2]
[384412002,1757393876465,3446.5906162,0.00012548,2]
[384412004,1757393901267,300.0,0.00013166,2]
[384412005,1757393924222,300.0,0.00013166,2]
[384412006,1757393946770,300.0,0.00013166,2]
[384412007,1757393969556,300.0,0.00013166,2]
[384412008,1757393993398,300.0,0.00013166,2]
[384412010,1757394016114,1800.0,0.00013166,2]
[384412012,1757394039054,1800.0,0.00013166,2]
[384412014,1757394054593,866.08465931,0.00013166,2]
[384412015,1757394063154,1500.0,0.00013166,2]
[384412026,1757394087768,1500.0,0.00013166,2]
[384412027,1757394111075,1500.0,0.00013166,2]
[384412028,1757394134166,1132.40993225,0.00013166,2]
[384412032,1757394285442,250.0,0.00013166,2]
[384412034,1757394309468,250.0,0.00013166,2]
[384412035,1757394332538,250.0,0.00013166,2]
[384412036,1757394355214,250.0,0.00013166,2]
[384412037,1757394379384,250.0,0.00013166,2]
[384412038,1757394402279,250.0,0.00013166,2]
[384412039,1757394425617,250.0,0.00013166,2]
[384412041,1757394449382,250.0,0.00013166,2]
[384412042,1757394457876,250.0,0.00013166,2]
[384412045,1757394538857,1000.0,0.00027,120]
[384412090,1757394632702,-500.0,0.00013299,2]
[384412092,1757394632711,-500.0,0.00013299,2]
[384412094,1757394632721,-500.0,0.00013299,2]
[384412096,1757394632731,-1969.19603159,0.00013466,2]
[384412098,1757394632741,-1200.0,0.00013467,2]
[384412100,1757394632750,-1200.0,0.00013468,2]
[384412102,1757394632759,-300.0,0.00013468,2]
[384412104,1757394632768,-1969.19603157,0.00013499,2]
[384412106,1757394632778,-1969.19603157,0.00013532,2]
[384412108,1757394632787,-500.0,0.00013561,2]
[384412110,1757394632796,-500.0,0.00013561,2]
[384412112,1757394632806,-500.0,0.00013561,2]
[384412114,1757394632815,-500.0,0.00013561,2]
[384412116,1757394632824,-500.0,0.00013561,2]
[384412118,1757394632834,-500.0,0.00013561,2]
[384412120,1757394632843,-500.0,0.00013561,2]
[384412122,1757394632852,-500.0,0.00013561,2]
[384412124,1757394632862,-500.0,0.00013561,2]
[384412126,1757394632872,-500.0,0.00013561,2]
[384412128,1757394632881,-500.0,0.00013561,2]
[384412130,1757394632891,-500.0,0.00013561,2]
[384412132,1757394632904,-500.0,0.00013561,2]
[384412134,1757394632914,-500.0,0.00013561,2]
[384412136,1757394632923,-500.0,0.00013561,2]
[384412155,1757394633104,-500.0,0.00013561,2]
[384412157,1757394633114,-500.0,0.00013561,2]
[384412159,1757394633124,-500.0,0.00013561,2]
[384412161,1757394633134,-500.0,0.00013561,2]
[384412163,1757394633144,-500.0,0.00013561,2]
[384412165,1757394633153,-500.0,0.00013561,2]
[384412167,1757394633163,-500.0,0.00013561,2]
[384412169,1757394633172,-500.0,0.00013561,2]
[384412171,1757394633182,-500.0,0.00013561,2]
[384412173,1757394633192,-500.0,0.00013561,2]
[384412175,1757394633201,-500.0,0.00013561,2]
[384412177,1757394633210,-500.0,0.00013561,2]
[384412179,1757394633221,-500.0,0.00013561,2]
[384412181,1757394633231,-500.0,0.00013561,2]
[384412182,1757394633240,-500.0,0.00013561,2]
[384412184,1757394633250,-500.0,0.00013561,2]
[384412186,1757394633259,-500.0,0.00013561,2]
[384412188,1757394633269,-500.0,0.00013561,2]
[384412190,1757394633278,-500.0,0.00013561,2]
[384412192,1757394633288,-500.0,0.00013561,2]
[384412194,1757394633298,-500.0,0.00013561,2]
[384412196,1757394633308,-254.05692763,0.00013561,2]
[384412198,1757394633318,-500.0,0.00013561,2]
[384412201,1757394633329,-500.0,0.00013561,2]
[384412203,1757394633338,-500.0,0.00013561,2]
[384412205,1757394633348,-500.0,0.00013561,2]
[384412207,1757394633358,-500.0,0.00013561,2]
[384412208,1757394633367,-500.0,0.00013561,2]
[384412210,1757394633376,-500.0,0.00013561,2]
[384412212,1757394633386,-250.0,0.00013561,2]
[384412214,1757394633396,-157.825031,0.00013561,2]
[384412216,1757394633405,-192.612546,0.00013561,2]
[384412218,1757394633414,-192.612546,0.00013561,2]
[384412220,1757394633423,-192.612546,0.00013561,2]
[384412222,1757394633432,-192.612546,0.00013561,2]
[384412224,1757394633441,-192.612546,0.00013561,2]
[384412226,1757394633451,-192.612546,0.00013561,2]
[384412228,1757394633461,-192.612546,0.00013561,2]
[384412230,1757394633470,-192.612546,0.00013561,2]
[384412232,1757394633480,-192.612546,0.00013561,2]
[384412234,1757394633490,-192.612546,0.00013561,2]
[384412236,1757394633501,-192.612546,0.00013561,2]
[384412238,1757394633511,-192.612546,0.00013561,2]
[384412240,1757394633520,-151.0,0.00013561,2]
[384412242,1757394633530,-154.432534,0.00013561,2]
[384412244,1757394633539,-151.0,0.00013561,2]
[384412246,1757394633549,-1016.183019,0.00013561,2]
[384412248,1757394633563,-151.0,0.00013561,2]
[384412250,1757394633572,-1016.183019,0.00013561,2]
[384412252,1757394633582,-1016.183019,0.00013561,2]
[384412254,1757394633592,-151.0,0.00013561,2]
[384412256,1757394633602,-1016.183019,0.00013561,2]
[384412258,1757394633611,-151.0,0.00013561,2]
[384412260,1757394633620,-151.0,0.00013561,2]
[384412262,1757394633630,-151.0,0.00013561,2]
[384412264,1757394633640,-151.0,0.00013561,2]
[384412266,1757394633649,-152.918827,0.00013561,2]
[384412268,1757394633659,-50000.0,0.00013561,2]
[384412270,1757394633669,-512.5859494,0.00013561,2]
[384412272,1757394633678,-151.0,0.00013562,2]
[384412274,1757394633688,-151.0,0.00013562,2]
[384412276,1757394633697,-174.883998,0.00013562,2]
[384412278,1757394633707,-151.0,0.00013562,2]
[384412280,1757394633716,-151.0,0.00013562,2]
[384412282,1757394633726,-151.0,0.00013562,2]
[384412284,1757394633735,-151.0,0.00013562,2]
[384412286,1757394633744,-151.0,0.00013562,2]
[384412288,1757394633754,-151.0,0.00013562,2]
[384412290,1757394633763,-151.0,0.00013562,2]
[384412292,1757394633772,-161.324593,0.00013562,2]
[384412294,1757394633782,-151.0,0.00013562,2]
[384412296,1757394633791,-151.0,0.00013562,2]
[384412298,1757394633801,-151.0,0.00013562,2]
[384412300,1757394633811,-208.126077,0.00013562,2]
[384412302,1757394633820,-151.0,0.00013562,2]
[384412303,1757394633829,-151.0,0.00013562,2]
[384412305,1757394633839,-199.63129,0.00013562,2]
[384412307,1757394633849,-151.0,0.00013562,2]
[384412310,1757394633860,-199.63129,0.00013562,2]
[384412312,1757394633870,-151.0,0.00013562,2]
[384412314,1757394633879,-199.63129,0.00013562,2]
[384412315,1757394633889,-151.0,0.00013562,2]
[384412317,1757394633903,-151.0,0.00013562,2]
[384412319,1757394633912,-199.63129,0.00013562,2]
[384412321,1757394633921,-151.0,0.00013562,2]
[384412323,1757394633930,-199.63129,0.00013562,2]
[384412325,1757394633941,-151.0,0.00013562,2]
[384412327,1757394633950,-199.63129,0.00013562,2]
[384412329,1757394633960,-151.0,0.00013562,2]
[384412331,1757394633970,-199.63129,0.00013562,2]
[384412334,1757394633980,-151.0,0.00013562,2]
[384412336,1757394633990,-199.63129,0.00013562,2]
[384412338,1757394633999,-199.63129,0.00013562,2]
[384412340,1757394634009,-199.63129,0.00013562,2]
[384412342,1757394634018,-199.63129,0.00013562,2]
[384412343,1757394634028,-199.63129,0.00013562,2]
[384412346,1757394634038,-199.63129,0.00013562,2]
[384412348,1757394634048,-199.63129,0.00013562,2]
[384412350,1757394634057,-600.988881,0.00013562,2]
[384412352,1757394634067,-600.988881,0.00013562,2]
[384412354,1757394634076,-600.988881,0.00013562,2]
[384412356,1757394634086,-600.988881,0.00013562,2]
[384412358,1757394634095,-600.988881,0.00013562,2]
[384412360,1757394634105,-600.988881,0.00013562,2]
[384412362,1757394634114,-600.988881,0.00013562,2]
[384412363,1757394634123,-315.721625,0.00013562,2]
[384412366,1757394634133,-600.988881,0.00013562,2]
[384412367,1757394634143,-315.721625,0.00013562,2]
[384412370,1757394634153,-315.721625,0.00013562,2]
[384412372,1757394634163,-600.988881,0.00013562,2]
[384412374,1757394634172,-315.721625,0.00013562,2]
[384412376,1757394634182,-600.988881,0.00013562,2]
[384412378,1757394634191,-600.988881,0.00013562,2]
[384412380,1757394634200,-315.721625,0.00013562,2]
[384412382,1757394634210,-600.988881,0.00013562,2]
[384412384,1757394634220,-315.721625,0.00013562,2]
[384412385,1757394634229,-315.721625,0.00013562,2]
[384412388,1757394634240,-151.0,0.00013562,2]
[384412389,1757394634249,-600.988881,0.00013562,2]
[384412391,1757394634259,-315.721625,0.00013562,2]
[384412393,1757394634267,-600.988881,0.00013562,2]
[384412395,1757394634277,-151.0,0.00013562,2]
[384412397,1757394634286,-600.988881,0.00013562,2]
[384412399,1757394634296,-151.0,0.00013562,2]
[384412401,1757394634305,-315.721625,0.00013562,2]
[384412403,1757394634315,-600.988881,0.00013562,2]
[384412405,1757394634324,-151.0,0.00013562,2]
[384412407,1757394634333,-315.721625,0.00013562,2]
[384412409,1757394634344,-315.721625,0.00013562,2]
[384412411,1757394634354,-151.0,0.00013562,2]
[384412413,1757394634364,-315.721625,0.00013562,2]
[384412415,1757394634374,-151.0,0.00013562,2]
[384412417,1757394634383,-151.0,0.00013562,2]
[384412419,1757394634393,-315.721625,0.00013562,2]
[384412421,1757394634402,-151.0,0.00013562,2]
[384412423,1757394634411,-315.721625,0.00013562,2]
[384412425,1757394634421,-315.721625,0.00013562,2]
[384412427,1757394634431,-151.0,0.00013562,2]
[384412429,1757394634441,-151.0,0.00013562,2]
[384412431,1757394634450,-315.721625,0.00013562,2]
[384412433,1757394634459,-151.0,0.00013562,2]
[384412435,1757394634469,-151.0,0.00013562,2]
[384412437,1757394634479,-151.0,0.00013562,2]
[384412439,1757394634489,-151.0,0.00013562,2]
[384412441,1757394634498,-151.0,0.00013562,2]
[384412443,1757394634507,-156.297866,0.00013562,2]
[384412445,1757394634517,-971.674106,0.00013562,2]
[384412447,1757394634526,-971.674106,0.00013562,2]
[384412449,1757394634536,-971.674106,0.00013562,2]
[384412451,1757394634546,-971.674106,0.00013562,2]
[384412453,1757394634555,-971.674106,0.00013562,2]
[384412455,1757394634565,-971.674106,0.00013562,2]
[384412457,1757394634575,-971.674106,0.00013562,2]
[384412459,1757394634583,-971.674106,0.00013562,2]
[384412461,1757394634593,-971.674106,0.00013562,2]
[384412463,1757394634602,-971.674106,0.00013562,2]
[384412465,1757394634611,-971.674106,0.00013562,2]
[384412467,1757394634620,-971.674106,0.00013562,2]
[384412469,1757394634630,-971.674106,0.00013562,2]
[384412471,1757394634640,-971.674106,0.00013562,2]
[384412473,1757394634650,-971.674106,0.00013562,2]
[384412475,1757394634660,-971.674106,0.00013562,2]
[384412477,1757394634669,-151.0,0.00013562,2]
[384412479,1757394634678,-151.0,0.00013562,2]
[384412481,1757394634687,-151.0,0.00013562,2]
[384412483,1757394634696,-151.0,0.00013562,2]
[384412485,1757394634706,-151.0,0.00013562,2]
[384412487,1757394634715,-250.378871,0.00013562,2]
[384412489,1757394634724,-151.0,0.00013562,2]
[384412491,1757394634733,-151.0,0.00013562,2]
[384412493,1757394634743,-158.383373,0.00013562,2]
[384412495,1757394634752,-297.559053,0.00013562,2]
[384412497,1757394634761,-297.559053,0.00013562,2]
[384412499,1757394634771,-297.559053,0.00013562,2]
[384412501,1757394634780,-297.559053,0.00013562,2]
[384412503,1757394634790,-297.559053,0.00013562,2]
[384412505,1757394634799,-297.559053,0.00013562,2]
[384412507,1757394634808,-297.559053,0.00013562,2]
[384412509,1757394634818,-297.559053,0.00013562,2]
[384412511,1757394634827,-297.559053,0.00013562,2]
[384412513,1757394634836,-297.559053,0.00013562,2]
[384412515,1757394634846,-297.559053,0.00013562,2]
[384412517,1757394634855,-297.559053,0.00013562,2]
[384412519,1757394634864,-297.559053,0.00013562,2]
[384412521,1757394634873,-297.559053,0.00013562,2]
[384412523,1757394634882,-297.559053,0.00013562,2]
[384412525,1757394634893,-297.559053,0.00013562,2]
[384412527,1757394634905,-297.559053,0.00013562,2]
[384412529,1757394634914,-297.559053,0.00013562,2]
[384412531,1757394634924,-297.559053,0.00013562,2]
[384412533,1757394634934,-297.559054,0.00013562,2]
[384412535,1757394634944,-224.138858,0.00013562,2]
[384412537,1757394634954,-224.138858,0.00013562,2]
[384412538,1757394634963,-224.138858,0.00013562,2]
[384412540,1757394634974,-224.138858,0.00013562,2]
[384412542,1757394634984,-224.138858,0.00013562,2]
[384412544,1757394634994,-224.138858,0.00013562,2]
[384412546,1757394635003,-224.138858,0.00013562,2]
[384412548,1757394635013,-224.138858,0.00013562,2]
[384412550,1757394635022,-224.138858,0.00013562,2]
[384412552,1757394635031,-224.138858,0.00013562,2]
[384412554,1757394635040,-224.138858,0.00013562,2]
[384412556,1757394635050,-224.138858,0.00013562,2]
[384412558,1757394635059,-224.138858,0.00013562,2]
[384412560,1757394635070,-224.138858,0.00013562,2]
[384412562,1757394635079,-224.138858,0.00013562,2]
[384412564,1757394635088,-224.138858,0.00013562,2]
[384412566,1757394635097,-224.138858,0.00013562,2]
[384412568,1757394635107,-224.138858,0.00013562,2]
[384412570,1757394635116,-224.138858,0.00013562,2]
[384412572,1757394635126,-224.138857,0.00013562,2]
[384412574,1757394635135,-151.0,0.00013562,2]
[384412576,1757394635144,-151.0,0.00013562,2]
[384412577,1757394635153,-151.0,0.00013562,2]
[384412580,1757394635163,-151.0,0.00013562,2]
[384412582,1757394635173,-151.0,0.00013562,2]
[384412584,1757394635182,-151.0,0.00013562,2]
[384412585,1757394635192,-181.295845,0.00013562,2]
[384412587,1757394635201,-192.612546,0.00013562,2]
[384412588,1757394635211,-192.612546,0.00013562,2]
[384412589,1757394635220,-192.612546,0.00013562,2]
[384412591,1757394635229,-192.612546,0.00013562,2]
[384412592,1757394635240,-192.612546,0.00013562,2]
[384412594,1757394635249,-192.612546,0.00013562,2]
[384412597,1757394635259,-192.612546,0.00013562,2]
[384412599,1757394635269,-192.612544,0.00013562,2]
[384412601,1757394635278,-1016.183019,0.00013562,2]
[384412602,1757394635288,-1000.0,0.00013563,2]
[384412604,1757394635297,-1021.96218342,0.00013563,2]
[384412606,1757394635307,-151.0,0.00013563,2]
[384412608,1757394635316,-151.0,0.00013563,2]
[384412610,1757394635326,-187.78006525,0.00013563,2]
[384412612,1757394635336,-151.0,0.00013563,2]
[384412614,1757394635345,-158.87133069,0.00013563,2]
[384412616,1757394635357,-151.0,0.00013563,2]
[384412618,1757394635366,-151.0,0.00013563,2]
[384412620,1757394635376,-151.0,0.00013563,2]
[384412622,1757394635385,-151.0,0.00013563,2]
[384412625,1757394635395,-151.0,0.00013563,2]
[384412626,1757394635404,-151.0,0.00013563,2]
[384412628,1757394635413,-151.0,0.00013563,2]
[384412629,1757394635423,-151.0,0.00013563,2]
[384412630,1757394635433,-151.0,0.00013563,2]
[384412631,1757394635443,-151.0,0.00013563,2]
[384412633,1757394635453,-151.0,0.00013563,2]
[384412635,1757394635463,-151.0,0.00013563,2]
[384412637,1757394635472,-151.0,0.00013563,2]
[384412639,1757394635481,-164.26035194,0.00013563,2]
[384412641,1757394635492,-233.34124046,0.00013563,2]
[384412642,1757394635502,-151.0,0.00013565,2]
[384412644,1757394635511,-151.0,0.00013565,2]
[384412645,1757394635520,-175.804565,0.00013565,2]
[384412646,1757394635530,-151.0,0.00013565,2]
[384412647,1757394635539,-151.0,0.00013565,2]
[384412649,1757394635549,-151.809562,0.00013565,2]
[384412651,1757394635559,-154.807771,0.00013565,2]
[384412653,1757394635568,-165.297363,0.00013565,2]
[384412655,1757394635578,-151.0,0.00013565,2]
[384412657,1757394635587,-151.0,0.00013565,2]
[384412659,1757394635596,-199.63129,0.00013565,2]
[384412661,1757394635606,-151.0,0.00013565,2]
[384412663,1757394635615,-151.0,0.00013565,2]
[384412665,1757394635625,-199.63129,0.00013565,2]
[384412667,1757394635634,-199.63129,0.00013565,2]
[384412669,1757394635643,-199.631285,0.00013565,2]
[384412671,1757394635653,-1969.19603157,0.00013565,2]
[384412673,1757394635662,-600.988881,0.00013565,2]
[384412675,1757394635672,-600.988881,0.00013565,2]
[384412677,1757394635682,-315.721625,0.00013565,2]
[384412679,1757394635692,-600.988881,0.00013565,2]
[384412681,1757394635702,-315.721625,0.00013565,2]
[384412684,1757394635712,-600.988882,0.00013565,2]
[384412686,1757394635721,-151.0,0.00013565,2]
[384412687,1757394635731,-315.721625,0.00013565,2]
[384412690,1757394635741,-151.0,0.00013565,2]
[384412692,1757394635750,-315.72162,0.00013565,2]
[384412693,1757394635759,-216.801491,0.00013565,2]
[384412695,1757394635769,-971.674106,0.00013565,2]